[Event "FIDE WCCC Girls-10 2024"]
[Site "Montesilvano"]
[Date "2024.11.20"]
[Round "6.7"]
[White "Anistoroaei, Maria"]
[Black "Pooja Shree R"]
[Result "0-1"]
[Annotator "NA RC"]
[ECO "E94"]
[WhiteElo "1715"]
[BlackElo "1615"]
[PlyCount "152"]
[EventDate "2024.11.18"]
[EventType "swiss"]
[EventCountry "ITA"]
[SourceTitle "playchess.com"]
[Source "ChessBase"]
[SourceQuality "1"]
[TimeControl "5400+30"]

1. d4 {[%emt 0:00:01]} Nf6 {[%emt 0:00:47]} 2. c4 {[%emt 0:00:06]} g6 {[%emt 0:00:07]} 3. Nc3 {[%emt 0:00:06]} Bg7 {[%emt 0:00:04]} 4. e4 {[%emt 0:00:04]} d6 {[%emt 0:00:04]} 5. Nf3 {[%emt 0:00:06]} Nbd7 {[%emt 0:00:23]} 6. Be2 {[%emt 0:00:51]} e5 {[%emt 0:00:13]} 7. O-O {[%emt 0:00:59]} O-O {[%emt 0:01:42]} 8. h3 {[%emt 0:11:01]} exd4 {[%emt 0:04:51]} 9. Nxd4 {[%emt 0:00:41]} Re8 {[%emt 0:00:10]} 10. f3 {[%emt 0:04:27]} c6 {[%emt 0:02:52]} 11. Bg5 {[%emt 0:02:06]} h6 {[%emt 0:24:39]} 12. Be3 {[%emt 0:00:34]} d5 {[%emt 0:23:31]} 13. Qd2 {[%emt 0:05:57]} c5 {[%emt 0:02:05]} 14. cxd5 {[%emt 0:07:45]} cxd4 {[%emt 0:00:12]} 15. Bxd4 {[%emt 0:00:23]} Nh5 {[%emt 0:09:00]} 16. Rfd1 {[%emt 0:02:31]} Bxd4+ {[%emt 0:01:51]} 17. Qxd4 {[%emt 0:01:48]} Nf4 {[%emt 0:01:19]} 18. Bf1 {[%emt 0:05:31]} Ne5 {[%emt 0:05:03]} 19. Qf2 {[%emt 0:06:20]} Qg5 {[%emt 0:07:53]} 20. Kh2 {[%emt 0:05:03]} Qf6 {[%emt 0:10:51]} 21. Rac1 {[%emt 0:04:27]} Bd7 {[%emt 0:01:00]} 22. a4 {[%emt 0:20:46]} a6 {[%emt 0:01:00]} 23. a5 {[%emt 0:02:07]} Rac8 {[%emt 0:00:44]} 24. g3 {[%emt 0:04:47]} Nh5 {[%emt 0:00:50]} 25. Be2 {[%emt 0:00:20]} Ng7 {[%emt 0:00:28]} 26. Rd4 {[%emt 0:04:44]} g5 {[%emt 0:00:52]} 27. Rf1 {[%emt 0:01:41]} Ng6 {[%emt 0:00:25]} 28. Rb4 {[%emt 0:00:27]} Rb8 {[%emt 0:00:51]} 29. Nd1 {[%emt 0:03:39]} h5 {[%emt 0:00:33]} 30. Ne3 {[%emt 0:00:56]} h4 {[%emt 0:00:17]} 31. Rg1 {[%emt 0:00:59]} b5 {[%emt 0:00:35]} 32. axb6 {[%emt 0:00:44]} Rxb6 {[%emt 0:00:15]} 33. Ng4 {[%emt 0:00:51]} hxg3+ {[%emt 0:00:11]} 34. Rxg3 {[%emt 0:00:19]} Bxg4 {[%emt 0:01:05]} 35. Rxb6 {[%emt 0:00:24]} Qf4 {[%emt 0:00:22]} 36. hxg4 {[%emt 0:00:54]} Ne5 {[%emt 0:00:43]} 37. Kg2 {[%emt 0:00:55]} Ng6 {[%emt 0:00:10]} 38. Rh3 {[%emt 0:04:10]} Nh4+ {[%emt 0:00:22]} 39. Rxh4 {[%emt 0:00:00]} gxh4 {[%emt 0:00:07]} 40. Qxh4 {[%emt 0:00:00]} Qe3 {[%emt 0:00:28]} 41. Qf2 {[%emt 0:00:00]} Qc1 {[%emt 0:00:37]} 42. Bxa6 {[%emt 0:00:06]} Rd8 {[%emt 0:00:37]} 43. b4 {[%emt 0:01:08]} Qd1 {[%emt 0:00:43]} 44. Rc6 {[%emt 0:00:37]} Ne6 {[%emt 0:00:42]} 45. Kg3 {[%emt 0:01:03]} Kg7 {[%emt 0:00:54]} 46. Rc2 {[%emt 0:00:31]} Ng5 {[%emt 0:00:28]} 47. Rd2 {[%emt 0:00:29]} Qh1 {[%emt 0:00:08]} 48. Qg2 {[%emt 0:00:31]} Qe1+ {[%emt 0:00:12]} 49. Qf2 {[%emt 0:00:30]} Qh1 {[%emt 0:00:41]} 50. Qf1 {[%emt 0:00:19]} Qh6 {[%emt 0:00:25]} 51. e5 {[%emt 0:00:39]} Rh8 {[%emt 0:00:32]} 52. Kf2 {[%emt 0:00:33]} Ne4+ {[%emt 0:00:25]} 53. fxe4 {[%emt 0:00:23]} Qxd2+ {[%emt 0:00:05]} 54. Kg3 {[%emt 0:00:37]} Qh2+ {[%emt 0:00:28]} 55. Kf3 {[%emt 0:00:10]} Rh3+ {[%emt 0:00:02]} 56. Qxh3 {[%emt 0:00:09]} Qxh3+ {[%emt 0:00:04]} 57. Ke2 {[%emt 0:00:33]} Qxg4+ {[%emt 0:00:31]} 58. Ke3 {[%emt 0:00:31]} Qg3+ {[%emt 0:00:51]} 59. Kd4 {[%emt 0:00:14]} Qf2+ {[%emt 0:00:18]} 60. Kc3 {[%emt 0:00:13]} Qe1+ {[%emt 0:00:45]} 61. Kd4 {[%emt 0:00:23]} Qa1+ {[%emt 0:00:05]} 62. Kc5 {[%emt 0:00:44]} Qxa6 {[%emt 0:00:03]} 63. d6 {[%emt 0:00:20]} Kf8 {[%emt 0:00:16]} 64. b5 {[%emt 0:00:23]} Qb7 {[%emt 0:00:13]} 65. e6 {[%emt 0:00:30]} fxe6 {[%emt 0:00:05]} 66. e5 {[%emt 0:00:12]} Ke8 {[%emt 0:00:08]} 67. b6 {[%emt 0:00:13]} Qd5+ {[%emt 0:00:28]} 68. Kb4 {[%emt 0:00:06]} Qxe5 {[%emt 0:00:11]} 69. b7 {[%emt 0:00:38]} Qxd6+ {[%emt 0:00:05]} 70. Ka4 {[%emt 0:00:14]} Qa6+ {[%emt 0:00:03]} 71. Kb4 {[%emt 0:00:09]} Qxb7+ {[%emt 0:00:02]} 72. Ka5 {[%emt 0:00:13]} Qb3 {[%emt 0:00:07]} 73. Ka6 {[%emt 0:00:05]} Qb4 {[%emt 0:00:03]} 74. Ka7 {[%emt 0:00:04]} Kd7 {[%emt 0:00:06]} 75. Ka8 {[%emt 0:00:05]} Kc7 {[%emt 0:00:04]} 76. Ka7 {[%emt 0:00:04]} Qb7# {[%emt 0:00:01]} 0-1

[Event "FIDE WCCC Girls-10 2024"]
[Site "Montesilvano"]
[Date "2024.11.20"]
[Round "6.8"]
[White "Mukhorina, Mariya Dm"]
[Black "Tran Hoang Bao An"]
[Result "0-1"]
[Annotator "NA RC"]
[ECO "B42"]
[WhiteElo "1567"]
[BlackElo "1714"]
[PlyCount "144"]
[EventDate "2024.11.18"]
[EventType "swiss"]
[EventCountry "ITA"]
[SourceTitle "playchess.com"]
[Source "ChessBase"]
[SourceQuality "1"]
[TimeControl "5400+30"]

1. e4 {[%emt 0:00:08]} c5 {[%emt 0:00:40]} 2. Nf3 {[%emt 0:00:20]} e6 {[%emt 0:00:47]} 3. d4 {[%emt 0:00:38]} cxd4 {[%emt 0:00:48]} 4. Nxd4 {[%emt 0:00:02]} a6 {[%emt 0:01:25]} 5. Bd3 {[%emt 0:00:33]} Qc7 {[%emt 0:01:53]} 6. O-O {[%emt 0:01:39]} Nf6 {[%emt 0:02:08]} 7. c4 {[%emt 0:01:07]} Nc6 {[%emt 0:01:58]} 8. Nxc6 {[%emt 0:01:56]} bxc6 {[%emt 0:01:51]} 9. Nc3 {[%emt 0:00:38]} h6 {[%emt 0:06:38]} 10. Be3 {[%emt 0:03:53]} d6 {[%emt 0:06:58]} 11. f4 {[%emt 0:05:35]} Be7 {[%emt 0:04:11]} 12. Qe2 {[%emt 0:13:55]} e5 {[%emt 0:08:48]} 13. f5 {[%emt 0:04:25]} Bb7 {[%emt 0:01:58]} 14. Rac1 {[%emt 0:08:12]} O-O {[%emt 0:05:43]} 15. g4 {[%emt 0:04:34]} Nh7 {[%emt 0:03:35]} 16. Qf2 {[%emt 0:03:51]} c5 {[%emt 0:03:54]} 17. Nd5 {[%emt 0:04:47]} Bxd5 {[%emt 0:00:18]} 18. exd5 {[%emt 0:00:57]} Qd8 {[%emt 0:03:12]} 19. Qe2 {[%emt 0:12:41]} Re8 {[%emt 0:01:54]} 20. Bc2 {[%emt 0:05:19]} Rb8 {[%emt 0:02:30]} 21. b3 {[%emt 0:03:04]} a5 {[%emt 0:02:33]} 22. Kg2 {[%emt 0:02:36]} a4 {[%emt 0:03:04]} 23. bxa4 {[%emt 0:00:51]} Bg5 {[%emt 0:02:30]} 24. Bxg5 {[%emt 0:01:09]} Qxg5 {[%emt 0:00:06]} 25. Rb1 {[%emt 0:03:16]} h5 {[%emt 0:00:31]} 26. h3 {[%emt 0:01:52]} hxg4 {[%emt 0:00:27]} 27. hxg4 {[%emt 0:01:24]} Nf6 {[%emt 0:00:20]} 28. Rxb8 {[%emt 0:01:01]} Rxb8 {[%emt 0:00:09]} 29. Bd1 {[%emt 0:00:07]} Nh5 {[%emt 0:00:33]} 30. Bb3 {[%emt 0:03:40]} Nf4+ {[%emt 0:00:13]} 31. Rxf4 {[%emt 0:00:01]} Qxf4 {[%emt 0:00:42]} 32. Qf3 {[%emt 0:05:09]} Qxf3+ {[%emt 0:01:14]} 33. Kxf3 {[%emt 0:00:01]} f6 {[%emt 0:00:18]} 34. Ke4 {[%emt 0:01:31]} Kf7 {[%emt 0:00:10]} 35. Kf3 {[%emt 0:00:53]} g6 {[%emt 0:01:00]} 36. Ke4 {[%emt 0:01:03]} Rh8 {[%emt 0:00:48]} 37. Kf3 {[%emt 0:02:23]} gxf5 {[%emt 0:00:45]} 38. gxf5 {[%emt 0:00:07]} Kg7 {[%emt 0:00:08]} 39. Kg4 {[%emt 0:00:37]} Kh6 {[%emt 0:00:05]} 40. Kh4 {[%emt 0:00:25]} Re8 {[%emt 0:00:15]} 41. Bd1 {[%emt 0:00:58]} e4 {[%emt 0:00:08]} 42. Kg4 {[%emt 0:00:16]} e3 {[%emt 0:00:08]} 43. Kf3 {[%emt 0:00:04]} Kg5 {[%emt 0:00:05]} 44. a5 {[%emt 0:00:19]} Kxf5 {[%emt 0:00:34]} 45. a6 {[%emt 0:00:50]} Kg5 {[%emt 0:00:33]} 46. a7 {[%emt 0:00:44]} Ra8 {[%emt 0:00:17]} 47. Kxe3 {[%emt 0:00:11]} Rxa7 {[%emt 0:00:03]} 48. a4 {[%emt 0:01:15]} f5 {[%emt 0:00:05]} 49. Kf3 {[%emt 0:00:25]} f4 {[%emt 0:00:05]} 50. Bc2 {[%emt 0:00:34]} Ra8 {[%emt 0:00:05]} 51. Bd1 {[%emt 0:00:18]} Kf5 {[%emt 0:00:06]} 52. Bc2+ {[%emt 0:00:13]} Ke5 {[%emt 0:00:06]} 53. Bd1 {[%emt 0:00:25]} Rf8 {[%emt 0:00:08]} 54. Be2 {[%emt 0:00:31]} Kd4 {[%emt 0:00:07]} 55. Bf1 {[%emt 0:00:59]} Ra8 {[%emt 0:00:09]} 56. a5 {[%emt 0:00:25]} Ke5 {[%emt 0:00:25]} 57. a6 {[%emt 0:00:06]} Rxa6 {[%emt 0:00:05]} 58. Be2 {[%emt 0:00:20]} Ra3+ {[%emt 0:00:05]} 59. Kf2 {[%emt 0:00:04]} Ke4 {[%emt 0:00:06]} 60. Bh5 {[%emt 0:00:06]} f3 {[%emt 0:00:08]} 61. Bg4 {[%emt 0:00:03]} Ra2+ {[%emt 0:00:09]} 62. Kf1 {[%emt 0:00:11]} Ke3 {[%emt 0:00:07]} 63. Bxf3 {[%emt 0:00:06]} Kxf3 {[%emt 0:00:07]} 64. Ke1 {[%emt 0:00:03]} Rh2 {[%emt 0:00:14]} 65. Kd1 {[%emt 0:00:03]} Re2 {[%emt 0:00:10]} 66. Kc1 {[%emt 0:00:02]} Ke3 {[%emt 0:00:05]} 67. Kd1 {[%emt 0:00:05]} Kd3 {[%emt 0:00:09]} 68. Kc1 {[%emt 0:00:03]} Rd2 {[%emt 0:00:07]} 69. Kb1 {[%emt 0:00:03]} Rc2 {[%emt 0:00:17]} 70. Ka1 {[%emt 0:00:03]} Kc3 {[%emt 0:00:08]} 71. Kb1 {[%emt 0:00:03]} Kb3 {[%emt 0:00:07]} 72. Ka1 {[%emt 0:00:08]} Rc1# {[%emt 0:00:05]} 0-1

[Event "FIDE WCCC Girls-10 2024"]
[Site "Montesilvano"]
[Date "2024.11.20"]
[Round "6.9"]
[White "Kuvandikova, Nafisa"]
[Black "Filippova, Milana"]
[Result "0-1"]
[Annotator "NA RC"]
[ECO "B42"]
[WhiteElo "1512"]
[BlackElo "1687"]
[PlyCount "118"]
[EventDate "2024.11.18"]
[EventType "swiss"]
[EventCountry "ITA"]
[SourceTitle "playchess.com"]
[Source "ChessBase"]
[SourceQuality "1"]
[TimeControl "5400+30"]

1. e4 {[%emt 0:00:05]} c5 {[%emt 0:00:08]} 2. Nf3 {[%emt 0:00:19]} e6 {[%emt 0:00:14]} 3. d4 {[%emt 0:00:20]} cxd4 {[%emt 0:00:08]} 4. Nxd4 {[%emt 0:00:28]} a6 {[%emt 0:00:04]} 5. Bd3 {[%emt 0:00:42]} Nf6 {[%emt 0:00:55]} 6. Qe2 {[%emt 0:01:04]} d6 {[%emt 0:00:49]} 7. O-O {[%emt 0:00:28]} Qc7 {[%emt 0:00:36]} 8. c4 {[%emt 0:00:49]} Nbd7 {[%emt 0:01:06]} 9. Nc3 {[%emt 0:00:47]} Be7 {[%emt 0:05:38]} 10. Be3 {[%emt 0:01:36]} b6 {[%emt 0:01:14]} 11. Rac1 {[%emt 0:01:33]} Bb7 {[%emt 0:01:13]} 12. f3 {[%emt 0:00:25]} O-O {[%emt 0:01:13]} 13. b3 {[%emt 0:02:09]} Rac8 {[%emt 0:00:31]} 14. Rfd1 {[%emt 0:01:25]} Qb8 {[%emt 0:00:24]} 15. Qf2 {[%emt 0:00:33]} Bd8 {[%emt 0:02:57]} 16. Nce2 {[%emt 0:05:59]} Bc7 {[%emt 0:01:11]} 17. Ng3 {[%emt 0:02:56]} d5 {[%emt 0:03:02]} 18. exd5 {[%emt 0:05:12]} exd5 {[%emt 0:02:48]} 19. cxd5 {[%emt 0:03:35]} Nxd5 {[%emt 0:04:02]} 20. Bd2 {[%emt 0:01:23]} Ne5 {[%emt 0:06:41]} 21. Bb1 {[%emt 0:00:36]} Ng6 {[%emt 0:05:06]} 22. Re1 {[%emt 0:01:31]} Bf4 {[%emt 0:01:41]} 23. Bxf4 {[%emt 0:01:57]} Qxf4 {[%emt 0:00:17]} 24. Rxc8 {[%emt 0:06:09]} Rxc8 {[%emt 0:00:10]} 25. Ne4 {[%emt 0:02:47]} b5 {[%emt 0:17:06]} 26. g3 {[%emt 0:04:21]} Qc7 {[%emt 0:00:33]} 27. Kg2 {[%emt 0:05:54]} Nge7 {[%emt 0:05:56]} 28. Qc2 {[%emt 0:08:56]} Qa5 {[%emt 0:06:53]} 29. Qd2 {[%emt 0:01:03]} Qb6 {[%emt 0:02:42]} 30. Nc2 {[%emt 0:06:11]} Nf5 {[%emt 0:03:14]} 31. b4 {[%emt 0:06:22]} a5 {[%emt 0:04:58]} 32. a3 {[%emt 0:01:51]} axb4 {[%emt 0:03:00]} 33. axb4 {[%emt 0:01:11]} Qc6 {[%emt 0:02:43]} 34. Rf1 {[%emt 0:08:06]} g6 {[%emt 0:05:57]} 35. Nc5 {[%emt 0:00:40]} Nxb4 {[%emt 0:03:21]} 36. Nxb4 {[%emt 0:01:10]} Qxc5 {[%emt 0:00:06]} 37. Re1 {[%emt 0:02:28]} Qc3 {[%emt 0:03:00]} 38. Qxc3 {[%emt 0:02:41]} Rxc3 {[%emt 0:00:05]} 39. Be4 {[%emt 0:00:16]} Bxe4 {[%emt 0:00:56]} 40. Rxe4 {[%emt 0:00:40]} Rb3 {[%emt 0:00:42]} 41. Nd5 {[%emt 0:02:44]} Nd6 {[%emt 0:01:18]} 42. Rb4 {[%emt 0:00:45]} Rxb4 {[%emt 0:00:45]} 43. Nxb4 {[%emt 0:00:24]} Kf8 {[%emt 0:00:50]} 44. Kf2 {[%emt 0:00:16]} Ke7 {[%emt 0:00:21]} 45. Ke3 {[%emt 0:00:14]} Nf5+ {[%emt 0:01:20]} 46. Ke4 {[%emt 0:01:28]} Kd6 {[%emt 0:00:56]} 47. g4 {[%emt 0:00:40]} Ne7 {[%emt 0:00:32]} 48. h4 {[%emt 0:03:02]} f5+ {[%emt 0:00:39]} 49. Kd3 {[%emt 0:01:34]} fxg4 {[%emt 0:00:33]} 50. fxg4 {[%emt 0:00:13]} Nc6 {[%emt 0:00:05]} 51. Nxc6 {[%emt 0:00:52]} Kxc6 {[%emt 0:00:06]} 52. h5 {[%emt 0:00:01]} Kc5 {[%emt 0:00:38]} 53. hxg6 {[%emt 0:00:58]} hxg6 {[%emt 0:00:21]} 54. Kc3 {[%emt 0:00:18]} g5 {[%emt 0:00:46]} 55. Kb3 {[%emt 0:00:16]} Kd4 {[%emt 0:00:06]} 56. Kb4 {[%emt 0:00:09]} Ke4 {[%emt 0:00:04]} 57. Kxb5 {[%emt 0:00:11]} Kf4 {[%emt 0:00:07]} 58. Kc4 {[%emt 0:00:12]} Kxg4 {[%emt 0:00:06]} 59. Kd4 {[%emt 0:09:05]} Kf5 0-1

[Event "FIDE WCCC Girls-10 2024"]
[Site "Montesilvano"]
[Date "2024.11.20"]
[Round "6.10"]
[White "Zhang, Weiai"]
[Black "Meng, Miranda"]
[Result "0-1"]
[Annotator "NA RC"]
[ECO "B12"]
[WhiteElo "1488"]
[BlackElo "1675"]
[PlyCount "168"]
[EventDate "2024.11.18"]
[EventType "swiss"]
[EventCountry "ITA"]
[SourceTitle "playchess.com"]
[Source "ChessBase"]
[SourceQuality "1"]
[TimeControl "5400+30"]

1. e4 {[%emt 0:00:02]} c6 {[%emt 0:00:03]} 2. d4 {[%emt 0:00:06]} d5 {[%emt 0:00:04]} 3. e5 {[%emt 0:00:06]} c5 {[%emt 0:00:05]} 4. dxc5 {[%emt 0:01:57]} e6 {[%emt 0:00:05]} 5. Be3 {[%emt 0:01:44]} Nc6 {[%emt 0:00:34]} 6. Nf3 {[%emt 0:00:20]} Nge7 {[%emt 0:00:38]} 7. c3 {[%emt 0:08:07]} Qc7 {[%emt 0:02:14]} 8. Na3 {[%emt 0:02:56]} a6 {[%emt 0:01:40]} 9. Bd4 {[%emt 0:02:49]} Ng6 {[%emt 0:04:41]} 10. b4 {[%emt 0:07:13]} Ncxe5 {[%emt 0:08:01]} 11. Nxe5 {[%emt 0:00:27]} Nxe5 {[%emt 0:00:32]} 12. Be2 {[%emt 0:01:13]} Ng6 {[%emt 0:05:01]} 13. g3 {[%emt 0:04:07]} e5 {[%emt 0:01:54]} 14. Be3 {[%emt 0:00:09]} Be6 {[%emt 0:01:38]} 15. Nc2 {[%emt 0:01:15]} Ne7 {[%emt 0:03:01]} 16. Bf3 {[%emt 0:03:45]} g6 {[%emt 0:01:33]} 17. Bg5 {[%emt 0:04:53]} Bg7 {[%emt 0:06:50]} 18. Qd2 {[%emt 0:03:14]} Rd8 {[%emt 0:06:43]} 19. Bh6 {[%emt 0:04:49]} Bf6 {[%emt 0:06:50]} 20. Bg2 {[%emt 0:07:29]} Rg8 {[%emt 0:08:40]} 21. h4 {[%emt 0:01:50]} d4 {[%emt 0:06:42]} 22. Bg5 {[%emt 0:14:29]} Bh8 {[%emt 0:04:16]} 23. cxd4 {[%emt 0:04:44]} exd4 {[%emt 0:00:28]} 24. Bf4 {[%emt 0:09:26]} Qc8 {[%emt 0:02:23]} 25. Na3 {[%emt 0:03:05]} Nd5 {[%emt 0:06:01]} 26. Bg5 {[%emt 0:05:23]} Rd7 {[%emt 0:03:01]} 27. Nc4 {[%emt 0:04:00]} d3 {[%emt 0:07:20]} 28. Rc1 {[%emt 0:01:01]} Qb8 {[%emt 0:04:54]} 29. Nd6+ {[%emt 0:01:48]} Kf8 {[%emt 0:01:05]} 30. O-O {[%emt 0:01:34]} f6 {[%emt 0:01:26]} 31. Bh6+ {[%emt 0:00:06]} Bg7 {[%emt 0:00:21]} 32. Rfe1 {[%emt 0:00:17]} Rxd6 {[%emt 0:01:11]} 33. cxd6 {[%emt 0:00:21]} Qxd6 {[%emt 0:00:17]} 34. Bxg7+ {[%emt 0:00:13]} Kxg7 {[%emt 0:00:51]} 35. Qxd3 {[%emt 0:00:18]} Rd8 {[%emt 0:00:37]} 36. Red1 {[%emt 0:00:28]} Qxb4 {[%emt 0:00:37]} 37. Rc4 {[%emt 0:00:30]} Qe7 {[%emt 0:01:33]} 38. Bxd5 {[%emt 0:02:00]} Rxd5 {[%emt 0:00:13]} 39. Rd4 {[%emt 0:00:08]} Rxd4 {[%emt 0:00:11]} 40. Qxd4 {[%emt 0:00:18]} Bxa2 {[%emt 0:00:10]} 41. Qa4 {[%emt 0:01:08]} Be6 {[%emt 0:00:18]} 42. Re1 {[%emt 0:00:31]} Qf7 {[%emt 0:00:49]} 43. Qe4 {[%emt 0:00:38]} Bd5 {[%emt 0:00:19]} 44. Qb4 {[%emt 0:00:27]} Kg8 {[%emt 0:00:51]} 45. Re7 {[%emt 0:00:24]} Qf8 {[%emt 0:00:30]} 46. Qe1 {[%emt 0:00:15]} Bc6 {[%emt 0:01:20]} 47. Qe6+ {[%emt 0:00:08]} Kh8 {[%emt 0:00:09]} 48. Rf7 {[%emt 0:00:09]} Qd8 {[%emt 0:00:23]} 49. Qxf6+ {[%emt 0:01:03]} Qxf6 {[%emt 0:00:05]} 50. Rxf6 {[%emt 0:00:06]} Kg7 {[%emt 0:00:05]} 51. Rf4 {[%emt 0:00:21]} a5 {[%emt 0:00:20]} 52. Rd4 {[%emt 0:01:50]} a4 {[%emt 0:00:25]} 53. Kf1 {[%emt 0:00:33]} a3 {[%emt 0:00:45]} 54. Ke1 {[%emt 0:00:44]} a2 {[%emt 0:00:34]} 55. Rd1 {[%emt 0:00:06]} Be4 {[%emt 0:00:18]} 56. Ra1 {[%emt 0:00:18]} Bb1 {[%emt 0:00:07]} 57. Kd2 {[%emt 0:00:24]} Kf6 {[%emt 0:00:22]} 58. Kc1 {[%emt 0:00:47]} Kf5 {[%emt 0:00:08]} 59. f3 {[%emt 0:00:10]} Ke5 {[%emt 0:01:04]} 60. Kd2 {[%emt 0:00:33]} b5 {[%emt 0:00:22]} 61. Kc3 {[%emt 0:00:21]} h6 {[%emt 0:01:02]} 62. Kb4 {[%emt 0:01:15]} Kd4 {[%emt 0:00:27]} 63. Kxb5 {[%emt 0:00:36]} Kc3 {[%emt 0:01:40]} 64. Kc5 {[%emt 0:00:27]} Kb2 {[%emt 0:00:10]} 65. Rxa2+ {[%emt 0:01:06]} Bxa2 {[%emt 0:01:03]} 66. Kd4 {[%emt 0:00:00]} Kc2 {[%emt 0:00:48]} 67. Ke3 {[%emt 0:00:00]} Be6 {[%emt 0:00:52]} 68. g4 {[%emt 0:00:05]} Kc3 {[%emt 0:00:59]} 69. h5 {[%emt 0:00:21]} gxh5 {[%emt 0:00:47]} 70. gxh5 {[%emt 0:00:05]} Bf7 {[%emt 0:00:04]} 71. Kf2 {[%emt 0:00:06]} Bxh5 {[%emt 0:00:10]} 72. Kg3 {[%emt 0:00:21]} Kd3 {[%emt 0:00:23]} 73. f4 {[%emt 0:00:20]} Ke4 {[%emt 0:00:17]} 74. Kh4 {[%emt 0:00:13]} Bd1 {[%emt 0:00:16]} 75. Kg3 {[%emt 0:00:12]} h5 {[%emt 0:00:08]} 76. Kh2 {[%emt 0:00:34]} Kxf4 {[%emt 0:00:09]} 77. Kh3 {[%emt 0:00:18]} Kg5 {[%emt 0:00:11]} 78. Kg3 {[%emt 0:00:16]} h4+ {[%emt 0:00:08]} 79. Kh2 {[%emt 0:00:10]} Kg4 {[%emt 0:00:07]} 80. Kg2 {[%emt 0:00:26]} h3+ {[%emt 0:00:06]} 81. Kh2 {[%emt 0:00:06]} Bf3 {[%emt 0:00:07]} 82. Kg1 {[%emt 0:00:17]} Kg3 {[%emt 0:00:07]} 83. Kf1 {[%emt 0:00:13]} h2 {[%emt 0:00:04]} 84. Ke1 {[%emt 0:00:13]} h1=Q+ {[%emt 0:00:06]} 0-1

[Event "FIDE WCCC Girls-10 2024"]
[Site "Montesilvano"]
[Date "2024.11.20"]
[Round "6.11"]
[White "Norkulova, Malika"]
[Black "Artemenko, Isabella"]
[Result "1/2-1/2"]
[Annotator "NA RC"]
[ECO "A26"]
[WhiteElo "1480"]
[BlackElo "1637"]
[PlyCount "67"]
[EventDate "2024.11.18"]
[EventType "swiss"]
[EventCountry "ITA"]
[SourceTitle "playchess.com"]
[Source "ChessBase"]
[SourceQuality "1"]
[TimeControl "5400+30"]

1. c4 {[%emt 0:06:59]} e5 {[%emt 0:00:06]} 2. Nc3 {[%emt 0:00:05]} Nc6 {[%emt 0:00:05]} 3. g3 {[%emt 0:00:06]} g6 {[%emt 0:00:06]} 4. Bg2 {[%emt 0:00:08]} Bg7 {[%emt 0:00:06]} 5. e4 {[%emt 0:00:11]} d6 {[%emt 0:00:17]} 6. Nge2 {[%emt 0:00:20]} f5 {[%emt 0:00:11]} 7. d3 {[%emt 0:01:39]} Nh6 {[%emt 0:00:09]} 8. O-O {[%emt 0:00:47]} O-O {[%emt 0:00:16]} 9. f4 {[%emt 0:03:32]} Nf7 {[%emt 0:04:17]} 10. Rb1 {[%emt 0:03:03]} Rb8 {[%emt 0:05:48]} 11. Be3 {[%emt 0:01:58]} a6 {[%emt 0:05:56]} 12. Qd2 {[%emt 0:03:01]} Bd7 {[%emt 0:03:10]} 13. a4 {[%emt 0:08:01]} Ne7 {[%emt 0:07:37]} 14. b4 {[%emt 0:00:54]} Qc8 {[%emt 0:05:28]} 15. c5 {[%emt 0:04:51]} fxe4 {[%emt 0:14:32]} 16. dxe4 {[%emt 0:00:20]} Bh3 {[%emt 0:00:29]} 17. b5 {[%emt 0:02:29]} Bxg2 {[%emt 0:01:01]} 18. Kxg2 {[%emt 0:00:06]} Qe6 {[%emt 0:14:26]} 19. b6 {[%emt 0:03:02]} c6 {[%emt 0:01:23]} 20. Rbd1 {[%emt 0:04:35]} Rbd8 {[%emt 0:00:31]} 21. Qc2 {[%emt 0:03:14]} exf4 {[%emt 0:08:20]} 22. Bxf4 {[%emt 0:04:32]} dxc5 {[%emt 0:00:55]} 23. Bc7 {[%emt 0:01:56]} Rxd1 {[%emt 0:00:26]} 24. Rxd1 {[%emt 0:00:31]} Ne5 {[%emt 0:09:14]} 25. Bd6 {[%emt 0:02:47]} Nc4 {[%emt 0:00:47]} 26. Bxc5 {[%emt 0:00:26]} Qf6 {[%emt 0:13:11]} 27. Qa2 {[%emt 0:03:43]} Qf3+ {[%emt 0:00:25]} 28. Kg1 {[%emt 0:00:16]} Qf7 {[%emt 0:04:37]} 29. Bxe7 {[%emt 0:01:58]} Qf2+ {[%emt 0:00:07]} 30. Kh1 {[%emt 0:00:04]} Qf3+ {[%emt 0:00:12]} 31. Kg1 {[%emt 0:00:20]} Qf2+ {[%emt 0:01:14]} 32. Kh1 {[%emt 0:00:07]} Qf3+ {[%emt 0:00:17]} 33. Kg1 {[%emt 0:00:44]} Qf2+ {[%emt 0:00:46]} 34. Kh1 {[%emt 0:00:06]} 1/2-1/2

[Event "FIDE WCCC Girls-10 2024"]
[Site "Montesilvano"]
[Date "2024.11.20"]
[Round "6.12"]
[White "Zhumambayeva Aliya"]
[Black "Blakhina Viktoryia"]
[Result "1-0"]
[Annotator "NA RC"]
[ECO "A52"]
[WhiteElo "1607"]
[BlackElo "1436"]
[PlyCount "37"]
[EventDate "2024.11.18"]
[EventType "swiss"]
[EventCountry "ITA"]
[SourceTitle "playchess.com"]
[Source "ChessBase"]
[SourceQuality "1"]
[TimeControl "5400+30"]

1. d4 {[%emt 0:00:03]} Nf6 {[%emt 0:00:10]} 2. c4 {[%emt 0:00:02]} e5 {[%emt 0:00:12]} 3. dxe5 {[%emt 0:00:03]} Ng4 {[%emt 0:00:05]} 4. e3 {[%emt 0:00:03]} Nxe5 {[%emt 0:00:08]} 5. f4 {[%emt 0:00:02]} Ng6 {[%emt 0:03:11]} 6. Nc3 {[%emt 0:00:04]} Nc6 {[%emt 0:05:34]} 7. Bd3 {[%emt 0:00:05]} Bb4 {[%emt 0:12:12]} 8. Nge2 {[%emt 0:00:36]} d6 {[%emt 0:01:39]} 9. a3 {[%emt 0:00:21]} Bxc3+ {[%emt 0:00:07]} 10. Nxc3 {[%emt 0:00:05]} Bd7 {[%emt 0:06:23]} 11. O-O {[%emt 0:00:07]} O-O {[%emt 0:03:00]} 12. b4 {[%emt 0:03:46]} a6 {[%emt 0:03:56]} 13. Bb2 {[%emt 0:00:17]} Re8 {[%emt 0:04:06]} 14. Nd5 {[%emt 0:02:29]} Nce7 {[%emt 0:02:39]} 15. Nf6+ {[%emt 0:17:52]} Kh8 {[%emt 0:15:43]} 16. Qh5 {[%emt 0:00:26]} h6 {[%emt 0:00:50]} 17. Nxe8 {[%emt 0:00:05]} Qxe8 {[%emt 0:02:44]} 18. Qxh6+ {[%emt 0:00:05]} Kg8 {[%emt 0:00:21]} 19. Qxg7# {[%emt 0:00:03]} 1-0